Cogmind - Beta 11 X8 @@@ ROGUE MODE // 2021.11.07 @ 21:21:04 Player: Sylvia Result: Destroyed by G-73 Enforcer with Phase Gun Performance ------------- Evolutions (8) 4000 Regions Visited (22) 4400 Robots Destroyed (255) 1275 Value Destroyed (12381) 12381 Prototype IDs (47) 940 Alien Tech Used (2) 400 Bonus (6234) 6234 TOTAL SCORE: 29630 Bonus ------- Triggered Max Security 1000 High Alert Combat Kills 2117 Follower Combat Kills 334 Aligned with FarCom 300 Met Zhirov 300 Scanned by Researcher 500 Acquired SGEMP 2000 Friendly Fire -317 Cogmind --------- Core Integrity 0/1450 Matter 291/300 Energy 100/100 System Corruption 9% Temperature Cool (0) Movement Core (50) Location -2/Testing Parts ------- > --- POWER (2) -------- (None) > --- PROPULSION (6) --- (None) > --- UTILITY (11) ----- (None) > --- WEAPON (4) ------- (None) > --- INVENTORY (5) ---- SGEMP Prototype Peak State ------------ > --- POWER ------------ Light Particle Reactor Reinforced Quantum Reactor > --- PROPULSION ------- Advanced Medium Treads Advanced Medium Treads Advanced Medium Treads Advanced Medium Treads Advanced Heavy Treads > --- UTILITY ---------- Advanced Heat Sink High-capacity Storage Unit Compact Matter Pod Makeshift Salvage Targeting Computer Improved Targeting Computer Advanced Target Analyzer Matter Filter Experimental Core Shielding Heavy Armor Plating Improved Focal Shield > --- WEAPON ----------- Phase Gun Quantum Rifle Quantum Rifle Railgun > --- INVENTORY -------- Micro Fission Core Light Particle Reactor Medium Treads Medium Treads Armored Medium Treads Armored Medium Treads Armored Medium Treads Advanced Medium Treads Advanced Medium Treads Advanced Heat Sink Advanced Heat Sink Advanced Heat Sink Compact Battery Matter Filter Electrolaser Coil Gun Coil Gun KE Penetrator Long-range Missile Launcher Micro-nuke Launcher [Rating: 148] Favorites ----------- Power Quantum Reactor Engine Ion Engine Power Core Reinforced Fission Core Reactor Quantum Reactor Propulsion Armored Medium Treads Treads Armored Medium Treads Leg Improved Titanium Leg Utility Advanced Heat Sink Device Advanced Heat Sink Storage Large Storage Unit Processor Makeshift Salvage Targeting Computer Hackware Advanced Hacking Suite Protection Centrium Medium Armor Plating Weapon KE Penetrator Energy Gun Improved Medium Laser Energy Cannon Long-range Proton Cannon Ballistic Gun KE Penetrator Ballistic Cannon Bore Cannon Launcher Micro-nuke Launcher Impact Weapon Powered Hammer Build | -11 -10 -10 -10 -9 -8 -7 -6 -6 -6 -5 -5 -5 -5 -5 -4 -4 -4 -4 -3 -3 -2 -2 ------- Run | Scr Mat Min Exi Min Mat Fac Fac Low Low Fac Ext Cet Arc Hub Fac Upp Upp Zhi Pro Res Res Tes Slots Evolved 16 | . . . . . 4 2 2 . . 2 . . . . 2 . . . . 2 2 . Power 1 | . . . . . . . . . . 1 . . . . . . . . . . . . Propulsion 4 | . . . . . 2 . . . . . . . . . . . . . . . 2 . Utility 9 | . . . . . 2 1 2 . . 1 . . . . 2 . . . . 1 . . Weapon 2 | . . . . . . 1 . . . . . . . . . . . . . 1 . . Parts Attached 324 | 8 7 17 . 8 26 17 10 14 1 33 25 27 6 5 47 7 6 6 5 18 6 25 Power 27 | 2 . 2 . . . 1 1 . . 4 1 3 . 1 3 1 1 1 . 3 1 2 Engine 7 | 2 . 2 . . . 1 1 . . . . . . . . . 1 . . . . . Core 10 | . . . . . . . . . . 3 1 1 . . . 1 . 1 . 2 . 1 Reactor 10 | . . . . . . . . . . 1 . 2 . 1 3 . . . . 1 1 1 Propulsion 91 | 2 4 6 . . 15 5 5 3 1 10 9 4 . . 3 2 . 2 2 4 2 12 Treads 51 | 2 . . . . . . . . . 10 9 4 . . 3 2 . 1 2 4 2 12 Leg 40 | . 4 6 . . 15 5 5 3 1 . . . . . . . . 1 . . . . Wheel . | . . . . . . . . . . . . . . . . . . . . . . . Hover . | . . . . . . . . . . . . . . . . . . . . . . . Flight . | . . . . . . . . . . . . . . . . . . . . . . . Utility 98 | 1 2 1 . . 6 3 2 5 . 11 5 13 3 3 24 2 2 2 3 3 2 5 Device 44 | . . . . . . 1 2 2 . 5 2 5 1 . 13 2 . 1 2 2 2 4 Storage 9 | 1 1 . . . 1 . . . . . . 1 . 1 1 . 2 . . . . 1 Processor 10 | . . 1 . . 2 . . 1 . 1 . 1 . 1 2 . . . 1 . . . Hackware 1 | . . . . . . . . . . . 1 . . . . . . . . . . . Protection 34 | . 1 . . . 3 2 . 2 . 5 2 6 2 1 8 . . 1 . 1 . . Artifact . | . . . . . . . . . . . . . . . . . . . . . . . Weapon 108 | 3 1 8 . 8 5 8 2 6 . 8 10 7 3 1 17 2 3 1 . 8 1 6 Energy Gun 19 | . 1 1 . 1 1 2 . 1 . 2 1 1 . . 2 . . . . 4 1 1 Energy Cannon 4 | . . . . . . 1 1 . . . . . . . . . 1 1 . . . . Ballistic Gun 69 | 3 . 5 . 5 4 3 . 4 . 6 7 5 3 1 13 2 1 . . 4 . 3 Ballistic Cannon 4 | . . 1 . . . 1 1 . . . . 1 . . . . . . . . . . Launcher 11 | . . 1 . 2 . 1 . . . . 2 . . . 2 . 1 . . . . 2 Special Weapon . | . . . . . . . . . . . . . . . . . . . . . . . Impact Weapon 1 | . . . . . . . . 1 . . . . . . . . . . . . . . Slashing Weapon . | . . . . . . . . . . . . . . . . . . . . . . . Piercing Weapon . | . . . . . . . . . . . . . . . . . . . . . . . Special Melee Weapon . | . . . . . . . . . . . . . . . . . . . . . . . Unidentified Prototypes 13 | . 1 . . . . 1 1 . . . . 4 . 1 . . . 5 . . . . Corrupted Parts 7 | . . . . . . . . 1 . . 1 . . . . . . 1 . 4 . . System Corruption 31 | . . . . . . . . 1 . . 1 . . . . . . 3 . 26 . . Parts Lost 99 | . . 2 . 2 4 4 2 2 . 3 1 5 1 1 26 1 . . 3 4 . 38 Power 11 | . . 1 . . . . . . . . 1 1 . . 5 . . . . . . 3 Propulsion 22 | . . . . . 2 3 . . . . . . . . 4 . . . 1 . . 12 Utility 39 | . . 1 . . 1 1 2 . . 3 . 3 1 . 10 1 . . 2 . . 14 Weapon 27 | . . . . 2 1 . . 2 . . . 1 . 1 7 . . . . 4 . 9 Highest Loss Streak 38 | . . 2 . 1 2 3 2 1 . 1 1 4 1 1 10 1 . . 3 3 . 38 Average Slot Usage (%) 89 | . 88 94 100 98 98 92 84 98 100 97 96 90 82 81 81 68 82 90 93 84 91 61 Engine 3 | . 14 12 14 14 9 7 6 6 6 2 . . . . . . 3 3 . . . . Core 1 | . . . . . . . . . . 4 5 2 . . . 2 5 6 10 8 1 . Reactor 3 | . . . . . . . . . . 2 1 7 11 11 9 . . . . . 6 4 Treads 10 | . 10 . . . . . . . . 22 22 14 11 11 9 15 15 13 17 15 21 15 Leg 10 | . 17 28 28 28 35 29 26 26 26 . . . . . . . . 1 . . . . Device 8 | . . . . . . . 4 8 13 8 16 15 12 11 12 8 15 13 12 10 13 9 Storage 8 | . 14 14 14 14 9 7 6 6 6 5 5 6 5 5 5 10 15 21 18 12 8 8 Processor 12 | . . 3 14 14 18 15 13 19 20 17 17 8 11 10 11 10 10 10 11 14 13 8 Protection 8 | . 3 6 . . 7 7 6 9 6 12 5 13 10 11 14 4 . 3 5 5 8 4 Energy Gun 2 | . 8 5 . . 4 3 . 3 . 3 . . . . 3 . . . . 2 12 6 Ballistic Gun 14 | . 18 20 28 20 13 17 13 15 20 12 16 14 15 17 11 15 12 13 10 8 4 2 Naked Turns 12 | . . . . . . . . . . . . . . . . . . . . . . 12 Heaviest Build 131 | 14 33 37 28 31 38 58 52 52 45 84 84 105 102 114 127 96 93 105 105 120 131 131 Greatest Support 190 | 40 40 30 30 30 80 75 75 65 57 108 114 160 160 160 160 127 97 124 124 128 182 190 Greatest Overweight (x) 2 | . 2 1 . 1 . . . . . 1 1 1 . . . . . 2 . . . 1 Average Overweight (x) . | . . . . . . . . . . . . . . . . . . . . . . . Largest Inventory Capacity 20 | 8 15 15 15 15 15 15 15 15 15 15 15 15 15 20 20 20 20 20 20 20 20 20 Average Capacity 16 | 7 13 15 15 15 15 15 15 15 15 15 15 15 15 15 20 20 20 20 20 20 20 18 Most Carried 20 | 6 15 15 15 15 15 15 15 15 15 15 15 15 15 15 20 10 12 16 16 20 20 20 Average Carried 14 | 4 12 14 14 15 14 14 14 14 15 14 14 14 14 14 16 8 9 13 15 17 19 14 Final Capacity 20 | 8 15 15 15 15 15 15 15 15 15 15 15 15 15 20 20 20 20 20 20 20 20 5 Final Carried 20 | 4 15 15 15 15 15 13 14 15 15 15 15 15 15 15 11 9 11 15 16 20 20 2 Class Distribution -------------------- 34% | Scavenger-Tank 22% | Scavenger-Gunner 20% | Mutant 13% | Scavenger-Mutant 8% | Skirmisher Dominant Class ---------------- Mutant | -10/Materials Mutant | -10/Mines Mutant | -10/Exiles Mutant | -9/Mines Mutant | -8/Materials Skirmisher | -7/Factory Scavenger-Mutant | -6/Factory Scavenger-Tank | -6/Lower Caves Scavenger-Tank | -6/Lower Caves Scavenger-Tank | -5/Factory Scavenger-Gunner | -5/Extension Scavenger-Tank | -5/Cetus Scavenger-Tank | -5/Archives Scavenger-Mutant | -5/Hub_04(d) Scavenger-Tank | -4/Factory Scavenger-Gunner | -4/Upper Caves Scavenger-Gunner | -4/Upper Caves Scavenger-Mutant | -4/Zhirov Scavenger-Gunner | -3/Proximity Caves Scavenger-Gunner | -3/Research Scavenger-Gunner | -2/Research Scavenger-Tank | -2/Testing Resources | -11 -10 -10 -10 -9 -8 -7 -6 -6 -6 -5 -5 -5 -5 -5 -4 -4 -4 -4 -3 -3 -2 -2 ----------- Run | Scr Mat Min Exi Min Mat Fac Fac Low Low Fac Ext Cet Arc Hub Fac Upp Upp Zhi Pro Res Res Tes Matter Collected 9786 | 226 205 447 . 91 558 609 173 286 24 980 1229 1022 158 100 2565 398 140 193 99 273 . 10 Remotely 463 | . . . . . . 380 83 . . . . . . . . . . . . . . . Salvage Created 14040 | . 201 322 . 11 510 698 252 343 . 1383 2312 1604 384 212 4457 465 89 266 140 391 . . Parts 879 | . 17 17 . 8 36 49 7 19 . 86 106 103 23 23 298 28 10 1 16 32 . . Haulers Intercepted 2 | . . . . . . 1 . . . . . . . . 1 . . . . . . . Recyclers Shooed 7 | . . . . . . . . . . 1 2 . . 1 3 . . . . . . . Parts Field Recycled . | . . . . . . . . . . . . . . . . . . . . . . . Retrieved Matter . | . . . . . . . . . . . . . . . . . . . . . . . Parts Self-Destructed 55 | . . . . . . . . 14 . . . . . . . 24 6 . 11 . . . Prevented 10 | . . . . . . . . 3 2 . . . . . . . . 1 4 . . . Kills | -11 -10 -10 -10 -9 -8 -7 -6 -6 -6 -5 -5 -5 -5 -5 -4 -4 -4 -4 -3 -3 -2 -2 ------- Run | Scr Mat Min Exi Min Mat Fac Fac Low Low Fac Ext Cet Arc Hub Fac Upp Upp Zhi Pro Res Res Tes Combat Hostiles Destroyed 216 | . 8 9 . 7 13 13 4 7 . 18 30 23 4 2 56 6 10 . 2 4 . . Guns 178 | . 8 8 . . 13 7 3 6 . 18 24 21 4 2 51 6 1 . 2 4 . . Cannons 5 | . . 1 . . . . 1 1 . . . 2 . . . . . . . . . . AOE 33 | . . . . 7 . 6 . . . . 6 . . . 5 . 9 . . . . . Classes Destroyed 19 | . 3 . . . 2 7 1 . . 2 2 . . 1 1 . . . . . . . Worker 6 | . . . . . . 2 . . . 1 . . . 1 2 . . . . . . . Builder 11 | . . . . . . 3 . . . . 1 . . . 7 . . . . . . . Tunneler 1 | . . . . . . . . . . 1 . . . . . . . . . . . . Hauler 2 | . . . . . . 1 . . . . . . . . 1 . . . . . . . Recycler 4 | . . . . . . . . . . . 2 . . . 2 . . . . . . . Mechanic 3 | . . . . . . 2 . . . . 1 . . . . . . . . . . . Watcher 16 | . 2 . . . 1 2 . . . 1 2 1 . . 6 . . . . 1 . . Swarmer 48 | . 6 3 . 7 4 . . 3 . . 8 . . . 7 . 10 . . . . . Grunt 66 | . 2 6 . . 5 . 3 3 . 6 12 12 . . 14 3 . . . . . . Brawler 4 | . . . . . . . . . . 1 1 . . . 1 1 . . . . . . Duelist 4 | . . . . . . . 1 1 . . 1 . . . 1 . . . . . . . Protector 1 | . . . . . . 1 . . . . . . . . . . . . . . . . Sentry 23 | . . . . . 3 . . . . 4 5 . 4 1 4 . . . . 2 . . Specialist 6 | . . . . . . 6 . . . . . . . . . . . . . . . . Hunter 18 | . . . . . 1 3 . . . 2 . 3 . . 9 . . . . . . . Programmer 32 | . . . . . . 3 . . . 5 . 4 . . 14 2 . . 2 2 . . Heavy 2 | . . . . . . . . . . . . . . 1 1 . . . . . . . Behemoth 2 | . . . . . . . . . . . 2 . . . . . . . . . . . Cetus Guard 4 | . . . . . . . . . . . . 4 . . . . . . . . . . Assembled 5 | . . . . . . . . . . . . . . . 5 . . . . . . . Savage 1 | . . . . . . . . . . . 1 . . . . . . . . . . . Guerrilla 1 | . . . . . . . . . . . 1 . . . . . . . . . . . Best Kill Streak 14 | . 6 3 . 4 4 14 4 4 . 4 8 6 4 2 11 2 5 . 2 2 . . Combat Bots Only 10 | . 6 3 . 4 4 7 4 4 . 4 7 5 4 1 10 2 5 . 2 2 . . Max Kills in Single Turn 6 | . 2 1 . 2 1 4 1 1 . 1 3 1 1 1 6 1 3 . 1 1 . . Gunslinging 1 | . 1 . . . . . . . . . . . . . 1 . . . . . . . Exploded 5 | . . . . 2 . 3 . . . . 2 . . . 5 . 3 . . . . . Melee . | . . . . . . . . . . . . . . . . . . . . . . . Uniques/NPCs Destroyed . | . . . . . . . . . . . . . . . . . . . . . . . Combat | -11 -10 -10 -10 -9 -8 -7 -6 -6 -6 -5 -5 -5 -5 -5 -4 -4 -4 -4 -3 -3 -2 -2 -------- Run | Scr Mat Min Exi Min Mat Fac Fac Low Low Fac Ext Cet Arc Hub Fac Upp Upp Zhi Pro Res Res Tes Damage Taken 29381 | . 357 515 . 231 970 1343 597 511 . 2406 1219 3034 156 382 9295 1348 140 . 402 441 . 6034 Core 3436 | . 79 29 . 23 111 94 82 76 . 195 165 231 . 85 682 101 15 . 14 . . 1454 Absorbed by Shields 49 | . . . . . . . . . . . 49 . . . . . . . . . . . Reduced by Siege Mode 97 | . . . . . . . . . . . . . . . 97 . . . . . . . Core Remaining (%) 69 | 100 . . . 47 79 86 . . 81 . . . . 32 . . . . 27 100 . . Volleys Fired 713 | . 31 41 . 12 64 48 12 17 . 66 71 63 9 18 192 23 5 20 6 15 . . Largest 4 | . 2 2 . 1 2 3 3 3 . 3 3 3 3 3 3 3 3 1 3 4 . . Hottest 229 | . 76 77 . 33 76 106 107 108 . 147 147 123 105 105 158 95 95 81 146 229 . . Shots Fired 1797 | . 62 82 . 12 126 122 29 47 . 185 204 180 24 36 524 63 7 20 17 57 . . Gun 1701 | . 62 76 . . 126 111 24 41 . 185 200 174 24 36 521 63 3 1 11 43 . . Cannon 68 | . . 6 . . . 6 5 6 . . . 6 . . . . . 19 6 14 . . Launcher 28 | . . . . 12 . 5 . . . . 4 . . . 3 . 4 . . . . . Special . | . . . . . . . . . . . . . . . . . . . . . . . Kinetic 1487 | . 55 65 . . 96 104 27 43 . 137 195 180 24 36 416 63 3 1 11 31 . . Thermal 239 | . 7 17 . . 30 13 2 . . 48 5 . . . 105 . . . . 12 . . Explosive 28 | . . . . 12 . 5 . . . . 4 . . . 3 . 4 . . . . . Electromagnetic 43 | . . . . . . . . 4 . . . . . . . . . 19 6 14 . . Robot Hit Streak 35 | . 6 9 . 1 18 20 14 11 . 18 17 18 6 11 35 5 1 20 22 13 . . Robot Miss Streak 5 | . 5 4 . 5 3 3 3 2 . 3 4 4 2 2 5 2 4 . 1 3 . . Penetration Max 1 | . . . . . . . . . . 1 1 1 1 1 1 1 . . . 1 . . Secondary Targets 37 | . 2 1 . . 2 2 1 2 . 4 4 6 . . 13 . . . . . . . Max Gunslinging Chain 2 | . 1 1 . . 1 1 1 1 . 1 1 1 . . 2 . . . . . . . Shots Hit Robots 1200 | . 34 55 . 2 90 88 23 35 . 132 139 116 14 20 346 39 1 19 11 36 . . Core Hits 587 | . 13 20 . 8 30 55 12 17 . 54 80 57 10 9 161 15 11 14 6 15 . . Critical Kills 29 | . . 1 . . . . 1 1 . . 5 11 3 . 6 1 . . . . . . Critical Parts Destroyed 55 | . . 2 . . . . 1 1 . 2 13 14 1 2 17 . . . 1 1 . . Critical Strikes 103 | . . 4 . . 4 1 2 2 . 6 19 27 4 3 26 1 . . 1 3 . . Burn 9 | . . 1 . . 4 1 . . . 2 . . . . 1 . . . . . . . Destroy 92 | . . 3 . . . . 2 2 . 4 19 26 4 3 25 1 . . 1 2 . . Blast 1 | . . . . . . . . . . . . 1 . . . . . . . . . . Corrupt 1 | . . . . . . . . . . . . . . . . . . . . 1 . . Melee Attacks 8 | . . . . . . . . 8 . . . . . . . . . . . . . . Impact 8 | . . . . . . . . 8 . . . . . . . . . . . . . . Slashing . | . . . . . . . . . . . . . . . . . . . . . . . Piercing . | . . . . . . . . . . . . . . . . . . . . . . . Sneak Attacks . | . . . . . . . . . . . . . . . . . . . . . . . Combat Hostiles . | . . . . . . . . . . . . . . . . . . . . . . . Follow-up Attacks . | . . . . . . . . . . . . . . . . . . . . . . . Damage Inflicted 35312 | . 454 701 . 622 1163 3032 424 713 . 3697 5517 3564 435 604 10680 1147 987 310 276 972 . 14 Guns 29337 | . 454 673 . . 1163 1457 345 627 . 3478 4651 3372 435 604 9941 1147 25 . 255 710 . . Cannons 961 | . . 28 . . . . 79 86 . . . 175 . . . . . 310 21 262 . . Explosions 4886 | . . . . 622 . 1555 . . . 219 866 . . . 662 . 962 . . . . . Melee . | . . . . . . . . . . . . . . . . . . . . . . . Ramming 128 | . . . . . . 20 . . . . . 17 . . 77 . . . . . . 14 Kinetic 25440 | . 404 514 . . 835 1332 398 640 . 2566 4531 3547 435 604 7708 1147 25 . 255 499 . . Thermal 4317 | . 50 187 . . 328 250 26 . . 912 120 . . . 2233 . . . . 211 . . Explosive 4761 | . . . . 622 . 1430 . . . 219 866 . . . 662 . 962 . . . . . Electromagnetic 666 | . . . . . . . . 73 . . . . . . . . . 310 21 262 . . Impact . | . . . . . . . . . . . . . . . . . . . . . . . Slashing . | . . . . . . . . . . . . . . . . . . . . . . . Piercing . | . . . . . . . . . . . . . . . . . . . . . . . Highest Corruption 30 | . . . . . . 3 . 1 1 4 5 16 16 16 10 12 12 15 15 30 . 9 Average Corruption 7 | . . . . . . 2 . 1 1 3 4 8 16 16 6 11 12 12 15 4 . 7 Corruption Purged . | . . . . . . . . . . . . . . . . . . . . . . . Effects 284 | . . . . . . 3 . 1 . 19 39 23 14 33 64 27 18 19 18 3 . 3 Message Errors 62 | . . . . . . 1 . . . 2 10 8 5 7 12 3 3 5 5 1 . . Matter Fused 71 | . . . . . . . . . . 3 12 2 1 15 12 11 4 5 5 . . 1 Heat Flow Errors 42 | . . . . . . 1 . . . 5 9 3 2 3 8 1 5 2 1 . . 2 Energy Discharges 28 | . . . . . . 1 . . . 4 2 1 . . 10 2 4 2 1 1 . . Parts Rejected 3 | . . . . . . . . . . . . . 1 . 2 . . . . . . . Data Loss (minor) 29 | . . . . . . . . 1 . 3 2 4 1 4 6 3 1 2 1 1 . . Data Loss (major) 17 | . . . . . . . . . . . 3 2 1 . 3 4 1 1 2 . . . Misfires 9 | . . . . . . . . . . . . . 1 2 3 1 . 1 1 . . . Alerts 1 | . . . . . . . . . . . . . . . . 1 . . . . . . Weapon Failures 22 | . . . . . . . . . . 2 1 3 2 2 8 1 . 1 2 . . . Overload Shots . | . . . . . . . . . . . . . . . . . . . . . . . Overflow Damage 395 | . . . . 44 . 78 . 7 . 5 6 . . . 75 . 113 67 . . . . Projectiles 74 | . . . . . . . . 7 . . . . . . . . . 67 . . . . Explosions 298 | . . . . 44 . 78 . . . 5 6 . . . 52 . 113 . . . . . Melee 23 | . . . . . . . . . . . . . . . 23 . . . . . . . Knockbacks 6 | . . . . . . . 1 4 . . . 1 . . . . . . . . . . Impact . | . . . . . . . . . . . . . . . . . . . . . . . Kinetic 5 | . . . . . . . 1 3 . . . 1 . . . . . . . . . . Secondary 1 | . . . . . . . . 1 . . . . . . . . . . . . . . Self-Inflicted Damage 116 | . . . . 116 . . . . . . . . . . . . . . . . . . Shots 4 | . . . . 4 . . . . . . . . . . . . . . . . . . Rammed 7 | . . . . . . . . . . . . 2 . . 3 . . . . . . 2 Targets Rammed 9 | . . . . . . 2 . . . . . 2 . . 3 . . . . . . 2 Kicked 2 | . . . . . . 2 . . . . . . . . . . . . . . . . Crushed . | . . . . . . . . . . . . . . . . . . . . . . . Highest Temperature 652 | . 48 291 . . 351 317 235 173 . 384 305 454 270 256 652 207 248 80 202 . . 189 Average Temperature 123 | . 15 102 . . 106 120 138 86 . 139 69 179 84 64 146 53 107 49 125 . . 97 Received Heat Transfer 3749 | . 27 228 . . 441 132 207 108 . 315 312 549 9 18 658 169 . . . 36 . 540 Effects 37 | . . . . . . 3 1 . . 2 . 8 . . 23 . . . . . . . Shutdowns 11 | . . . . . . . . . . 1 . 3 . . 7 . . . . . . . Energy Bleed 5 | . . . . . . . . . . 1 . . . . 4 . . . . . . . Interference 8 | . . . . . . 3 1 . . . . 2 . . 2 . . . . . . . Matter Decay 4 | . . . . . . . . . . . . 2 . . 2 . . . . . . . Short Circuit 5 | . . . . . . . . . . . . 1 . . 4 . . . . . . . Damage (minor) 3 | . . . . . . . . . . . . . . . 3 . . . . . . . Damage (core) 1 | . . . . . . . . . . . . . . . 1 . . . . . . . Siege Activations 3 | . . . . . . . . . . . . . . . 3 . . . . . . . Total Turns 58 | . . . . . . . . . . . . . . . 58 . . . . . . . Longest Duration 25 | . . . . . . . . . . . . . . . 25 . . . . . . . Robots Corrupted . | . . . . . . . . . . . . . . . . . . . . . . . Combat Hostiles . | . . . . . . . . . . . . . . . . . . . . . . . Parts Fried . | . . . . . . . . . . . . . . . . . . . . . . . Impact Corruptions 1 | . . . . . . . . . . . . . . . 1 . . . . . . . Robots Melted . | . . . . . . . . . . . . . . . . . . . . . . . Combat Hostiles . | . . . . . . . . . . . . . . . . . . . . . . . Parts Melted 21 | . . 1 . . 4 . . . . 1 4 . . . 11 . . . . . . . Heat Transferred 6576 | . 111 481 . . 999 396 37 . . 1370 185 . . . 2738 . . . . 259 . . Parts Sabotaged 3 | . . . . . . . . . . . . . . . . . . . . . . 3 Parts Stolen . | . . . . . . . . . . . . . . . . . . . . . . . Parts Stripped . | . . . . . . . . . . . . . . . . . . . . . . . Power Chain Reactions . | . . . . . . . . . . . . . . . . . . . . . . . Missiles Intercepted . | . . . . . . . . . . . . . . . . . . . . . . . Alert | -11 -10 -10 -10 -9 -8 -7 -6 -6 -6 -5 -5 -5 -5 -5 -4 -4 -4 -4 -3 -3 -2 -2 ------- Run | Scr Mat Min Exi Min Mat Fac Fac Low Low Fac Ext Cet Arc Hub Fac Upp Upp Zhi Pro Res Res Tes Peak Influence 1615 | . 299 171 . 155 219 262 245 . . 700 898 909 533 283 1127 . . . . 133 . 1615 Initial 502 | . . 51 . . 60 29 123 . . 46 303 502 363 186 . . . . . 33 . . Average 282 | . 193 70 . 60 100 46 196 . . 245 449 683 507 175 403 . . . . 47 . 1508 Maximum Alert Level 5 | . 1 . . . 1 1 1 . . 3 3 3 2 1 4 . . . . . . 5 Low Security (%) 55 | 100 50 100 . 100 84 97 42 . . 63 3 . . 54 38 . . . . 100 100 . Level 1 17 | . 49 . . . 15 2 57 . . . 50 . 10 45 18 . . . . . . . Level 2 14 | . . . . . . . . . . 34 29 66 89 . 11 . . . . . . . Level 3 10 | . . . . . . . . . . 1 17 33 . . 29 . . . . . . . Level 4 . | . . . . . . . . . . . . . . . . . . . . . . . Level 5 . | . . . . . . . . . . . . . . . . . . . . . . . High Security . | . . . . . . . . . . . . . . . . . . . . . . . Max Security 1 | . . . . . . . . . . . . . . . . . . . . . . 99 Squads Dispatched 52 | . . 1 . . 2 7 1 . . 4 3 2 . 4 13 . . . . 1 1 13 Investigation 6 | . . 1 . . 1 1 . . . . 1 2 . . . . . . . . . . Extermination 15 | . . . . . . 2 1 . . 2 . . . 1 7 . . . . 1 1 . Reinforcement 16 | . . . . . 1 4 . . . 1 1 . . 3 5 . . . . . . 1 Assault 15 | . . . . . . . . . . 1 1 . . . 1 . . . . . . 12 Garrison . | . . . . . . . . . . . . . . . . . . . . . . . Intercept . | . . . . . . . . . . . . . . . . . . . . . . . Construction Impeded 4 | . . . . . . 1 . . . . 1 . . 1 1 . . . . . . . Haulers Reinforced 1 | . . . . . . . . . . . . . . . 1 . . . . . . . Active Scanning Responses . | . . . . . . . . . . . . . . . . . . . . . . . Cargo Convoy Interrupts 2 | . . . . . . 1 . . . . . . . . 1 . . . . . . . Stealth | -11 -10 -10 -10 -9 -8 -7 -6 -6 -6 -5 -5 -5 -5 -5 -4 -4 -4 -4 -3 -3 -2 -2 --------- Run | Scr Mat Min Exi Min Mat Fac Fac Low Low Fac Ext Cet Arc Hub Fac Upp Upp Zhi Pro Res Res Tes Distress Signals 16 | . 1 . . . 3 . . . . 1 3 1 . 1 6 . . . . . . . Communications Jammed . | . . . . . . . . . . . . . . . . . . . . . . . Distress Signals . | . . . . . . . . . . . . . . . . . . . . . . . Times Spotted 367 | . 21 12 . 7 20 23 6 7 . 25 49 25 8 4 97 10 8 . 2 5 . 38 Peak Tracking Total 40 | . 9 3 . 4 3 10 4 3 . 5 6 5 2 3 10 4 5 . 2 3 1 40 Tactical Retreats 27 | . 1 3 . . 1 1 . . . . 7 1 . . 11 1 1 . . . . . Traps | -11 -10 -10 -10 -9 -8 -7 -6 -6 -6 -5 -5 -5 -5 -5 -4 -4 -4 -4 -3 -3 -2 -2 ------- Run | Scr Mat Min Exi Min Mat Fac Fac Low Low Fac Ext Cet Arc Hub Fac Upp Upp Zhi Pro Res Res Tes Traps Triggered 9 | . . . . . 1 1 2 . . 1 1 . . 1 1 . . . . . . 1 Indirectly . | . . . . . . . . . . . . . . . . . . . . . . . Trap Hack Attempts . | . . . . . . . . . . . . . . . . . . . . . . . Triggered . | . . . . . . . . . . . . . . . . . . . . . . . Disarmed . | . . . . . . . . . . . . . . . . . . . . . . . Reprogrammed . | . . . . . . . . . . . . . . . . . . . . . . . Reused . | . . . . . . . . . . . . . . . . . . . . . . . Traps Extracted . | . . . . . . . . . . . . . . . . . . . . . . . Installed . | . . . . . . . . . . . . . . . . . . . . . . . Triggered 4 | . . . . . . . . . 2 . . . . . 2 . . . . . . . Machines | -11 -10 -10 -10 -9 -8 -7 -6 -6 -6 -5 -5 -5 -5 -5 -4 -4 -4 -4 -3 -3 -2 -2 ---------- Run | Scr Mat Min Exi Min Mat Fac Fac Low Low Fac Ext Cet Arc Hub Fac Upp Upp Zhi Pro Res Res Tes Machines Disabled 46 | . . . . . 1 1 2 . . 21 4 4 4 2 6 . . 1 . . . . Max in Single Turn 5 | . . . . . 1 1 2 . . 5 2 1 1 1 2 . . 1 . . . . Garrison Access 1 | . . . . . . . . . . 1 . . . . . . . . . . . . Energy Cycler 3 | . . . . . . . . . . . 3 . . . . . . . . . . . Machines Sabotaged . | . . . . . . . . . . . . . . . . . . . . . . . Garrisons Compromised 1 | . . . . . . . . . . . . . . . 1 . . . . . . . Overloaded Fab Kills . | . . . . . . . . . . . . . . . . . . . . . . . Hacking | -11 -10 -10 -10 -9 -8 -7 -6 -6 -6 -5 -5 -5 -5 -5 -4 -4 -4 -4 -3 -3 -2 -2 --------- Run | Scr Mat Min Exi Min Mat Fac Fac Low Low Fac Ext Cet Arc Hub Fac Upp Upp Zhi Pro Res Res Tes Machines Accessed 48 | . 4 1 2 . 5 2 2 1 . 4 8 3 1 2 4 . . 9 . . . . Terminals 31 | . 4 . . . 5 1 2 . . 2 8 3 . 2 4 . . . . . . . Fabricators . | . . . . . . . . . . . . . . . . . . . . . . . Repair Stations . | . . . . . . . . . . . . . . . . . . . . . . . Recycling Units . | . . . . . . . . . . . . . . . . . . . . . . . Scanalyzers . | . . . . . . . . . . . . . . . . . . . . . . . Garrison Access 3 | . . . . . . 1 . . . 2 . . . . . . . . . . . . Total Hacks 157 | . 7 1 5 . 12 4 7 4 . 5 16 10 25 5 8 . . 48 . . . . Successful 114 | . 4 1 5 . 3 . 3 4 . 2 8 4 25 4 3 . . 48 . . . . Failed 43 | . 3 . . . 9 4 4 . . 3 8 6 . 1 5 . . . . . . . Catastrophic 7 | . . . . . 1 1 . . . 1 1 2 . . 1 . . . . . . . Database Lockouts . | . . . . . . . . . . . . . . . . . . . . . . . Manual 23 | . . . 1 . 5 . 4 . . 2 6 . . 5 . . . . . . . . Terminals 70 | . 7 . . . 12 2 7 . . 3 16 10 . 5 8 . . . . . . . Fabricators . | . . . . . . . . . . . . . . . . . . . . . . . Repair Stations . | . . . . . . . . . . . . . . . . . . . . . . . Recycling Units . | . . . . . . . . . . . . . . . . . . . . . . . Scanalyzers . | . . . . . . . . . . . . . . . . . . . . . . . Garrison Access 4 | . . . . . . 2 . . . 2 . . . . . . . . . . . . Terminal Hacks 104 | . 4 1 5 . 2 . 2 4 . 1 5 4 25 . 3 . . 48 . . . . Record 74 | . . . 4 . . . . 4 . . . 4 25 . 1 . . 36 . . . . Part Schematic 4 | . . . . . . . . . . . . . . . . . . 4 . . . . Robot Analysis 4 | . . . . . . . . . . . . . . . . . . 4 . . . . Prototype ID Bank 5 | . 1 . . . . . . . . . . . . . . . . 4 . . . . Open Door 7 | . . 1 . . . . . . . 1 5 . . . . . . . . . . . Open DSF 1 | . . . . . . . . . . . . . . . 1 . . . . . . . Branch Access Points 2 | . 1 . . . . . . . . . . . . . 1 . . . . . . . Emergency Access Points 1 | . . . . . . . 1 . . . . . . . . . . . . . . . Locate Traps 1 | . . . . . . . 1 . . . . . . . . . . . . . . . Reinforcement Status 1 | . . . . . 1 . . . . . . . . . . . . . . . . . Recall Investigation 1 | . . . . . 1 . . . . . . . . . . . . . . . . . Hauler Manifests 1 | . 1 . . . . . . . . . . . . . . . . . . . . . Registered Components 1 | . 1 . . . . . . . . . . . . . . . . . . . . . EX-Prototype ID Bank 1 | . . . 1 . . . . . . . . . . . . . . . . . . . Fabricator Hacks . | . . . . . . . . . . . . . . . . . . . . . . . Repair Station Hacks . | . . . . . . . . . . . . . . . . . . . . . . . Recycling Unit Hacks . | . . . . . . . . . . . . . . . . . . . . . . . Scanalyzer . | . . . . . . . . . . . . . . . . . . . . . . . Garrison Access Hacks 1 | . . . . . . . . . . 1 . . . . . . . . . . . . Seal Access 1 | . . . . . . . . . . 1 . . . . . . . . . . . . Unauthorized Hacks 9 | . . . . . 1 . 1 . . . 3 . . 4 . . . . . . . . Terminals 9 | . . . . . 1 . 1 . . . 3 . . 4 . . . . . . . . Assimilate 1 | . . . . . . . . . . . 1 . . . . . . . . . . . Botnet 5 | . . . . . 1 . . . . . 2 . . 2 . . . . . . . . Disrupt 1 | . . . . . . . . . . . . . . 1 . . . . . . . . Operators 2 | . . . . . . . 1 . . . . . . 1 . . . . . . . . Fabricators . | . . . . . . . . . . . . . . . . . . . . . . . Repair Stations . | . . . . . . . . . . . . . . . . . . . . . . . Recycling Units . | . . . . . . . . . . . . . . . . . . . . . . . Scanalyzers . | . . . . . . . . . . . . . . . . . . . . . . . Garrison Access . | . . . . . . . . . . . . . . . . . . . . . . . Data Cores Recovered . | . . . . . . . . . . . . . . . . . . . . . . . Used . | . . . . . . . . . . . . . . . . . . . . . . . Hacking Detections 28 | . 3 . . . 5 2 2 . . 2 6 3 . 1 4 . . . . . . . Full Trace Events 4 | . . . . . . 1 . . . . 1 2 . . . . . . . . . . Feedback Events . | . . . . . . . . . . . . . . . . . . . . . . . Feedback Blocked . | . . . . . . . . . . . . . . . . . . . . . . . Robot Schematics Acquired . | . . . . . . . . . . . . . . . . . . . . . . . Robots Built . | . . . . . . . . . . . . . . . . . . . . . . . Authchips . | . . . . . . . . . . . . . . . . . . . . . . . Time . | . . . . . . . . . . . . . . . . . . . . . . . Total Robot Build Rating . | . . . . . . . . . . . . . . . . . . . . . . . Part Schematics Acquired 4 | . . . . . . . . . . . . . . . . . . 4 . . . . Parts Built . | . . . . . . . . . . . . . . . . . . . . . . . Authchips . | . . . . . . . . . . . . . . . . . . . . . . . Time . | . . . . . . . . . . . . . . . . . . . . . . . Total Part Build Rating . | . . . . . . . . . . . . . . . . . . . . . . . Parts Repaired . | . . . . . . . . . . . . . . . . . . . . . . . Time . | . . . . . . . . . . . . . . . . . . . . . . . Parts Recycled . | . . . . . . . . . . . . . . . . . . . . . . . Recycled Matter . | . . . . . . . . . . . . . . . . . . . . . . . Retrieved Matter . | . . . . . . . . . . . . . . . . . . . . . . . Retrieved Components . | . . . . . . . . . . . . . . . . . . . . . . . Parts Scanalyzed . | . . . . . . . . . . . . . . . . . . . . . . . Part Schematics Acquired . | . . . . . . . . . . . . . . . . . . . . . . . Parts Damaged . | . . . . . . . . . . . . . . . . . . . . . . . Bothacking | -11 -10 -10 -10 -9 -8 -7 -6 -6 -6 -5 -5 -5 -5 -5 -4 -4 -4 -4 -3 -3 -2 -2 ------------ Run | Scr Mat Min Exi Min Mat Fac Fac Low Low Fac Ext Cet Arc Hub Fac Upp Upp Zhi Pro Res Res Tes Used RIF Installer . | . . . . . . . . . . . . . . . . . . . . . . . Robots Hacked . | . . . . . . . . . . . . . . . . . . . . . . . Non-combat . | . . . . . . . . . . . . . . . . . . . . . . . Combat . | . . . . . . . . . . . . . . . . . . . . . . . Robot Hacks Applied . | . . . . . . . . . . . . . . . . . . . . . . . Relay Couplers Released 4 | . . . . . . . . . . 4 . . . . . . . . . . . . Programmers 4 | . . . . . . . . . . 4 . . . . . . . . . . . . Robots Rewired 10 | . . . . . . . . . . . 10 . . . . . . . . . . . Allies Hacked . | . . . . . . . . . . . . . . . . . . . . . . . Hacks Repelled . | . . . . . . . . . . . . . . . . . . . . . . . Allies | -11 -10 -10 -10 -9 -8 -7 -6 -6 -6 -5 -5 -5 -5 -5 -4 -4 -4 -4 -3 -3 -2 -2 -------- Run | Scr Mat Min Exi Min Mat Fac Fac Low Low Fac Ext Cet Arc Hub Fac Upp Upp Zhi Pro Res Res Tes Total Allies 14 | . . . . 1 . . . . . . 13 . . . . . . . . . . . Largest Group 7 | . . . . 1 1 . . . . . 7 . . . . . . . . . . . Highest-Rated Group 317 | . . . . 31 31 . . . . . 317 . . . . . . . . . . . Highest-Rated Ally 159 | . . . . 31 31 . . . . . 159 . . . . . . . . . . . Total Orders 6 | . . . . . . . . . . . 6 . . . . . . . . . . . STAY 4 | . . . . . . . . . . . 4 . . . . . . . . . . . FOLLOW 2 | . . . . . . . . . . . 2 . . . . . . . . . . . Ally Attacks 72 | . . . . . 11 . . . . . 61 . . . . . . . . . . . Total Damage 1579 | . . . . . 149 . . . . . 1430 . . . . . . . . . . . Kills 9 | . . . . . 2 . . . . . 7 . . . . . . . . . . . Allies Corrupted . | . . . . . . . . . . . . . . . . . . . . . . . Allies Melted 1 | . . . . . . . . . . . 1 . . . . . . . . . . . Intel | -11 -10 -10 -10 -9 -8 -7 -6 -6 -6 -5 -5 -5 -5 -5 -4 -4 -4 -4 -3 -3 -2 -2 ------- Run | Scr Mat Min Exi Min Mat Fac Fac Low Low Fac Ext Cet Arc Hub Fac Upp Upp Zhi Pro Res Res Tes Robot Analysis Total 4 | . . . . . . . . . . . . . . . . . . 4 . . . . Derelict Logs Recovered 6 | . . . . . . . . 2 1 . . . . . . 1 2 . . . . . Drone Launches . | . . . . . . . . . . . . . . . . . . . . . . . Drone Recoveries . | . . . . . . . . . . . . . . . . . . . . . . . Exploration | -11 -10 -10 -10 -9 -8 -7 -6 -6 -6 -5 -5 -5 -5 -5 -4 -4 -4 -4 -3 -3 -2 -2 ------------- Run | Scr Mat Min Exi Min Mat Fac Fac Low Low Fac Ext Cet Arc Hub Fac Upp Upp Zhi Pro Res Res Tes Turns Passed 17606 | 76 639 891 362 383 1515 1376 301 762 190 1642 1584 633 291 842 3172 587 500 480 386 430 288 276 Spaces Moved 8825 | 46 275 391 289 255 839 771 209 563 163 773 764 233 159 279 1325 284 274 242 212 206 176 97 Core 11 | 11 . . . . . . . . . . . . . . . . . . . . . . Treads 5121 | 35 93 . . . . . . . . 745 764 233 159 279 1325 284 274 239 212 206 176 97 Legs 3693 | . 182 391 289 255 839 771 209 563 163 28 . . . . . . . 3 . . . . Wheels . | . . . . . . . . . . . . . . . . . . . . . . . Hover . | . . . . . . . . . . . . . . . . . . . . . . . Flight . | . . . . . . . . . . . . . . . . . . . . . . . Fastest Speed 50 | 50 160 125 125 125 120 110 117 105 105 112 165 160 160 160 160 165 175 173 157 150 158 145 Average Speed 150 | 133 180 179 125 136 126 126 118 110 107 167 165 162 160 160 160 174 175 175 165 154 158 151 Slowest Speed 260 | 160 260 195 125 195 130 127 125 120 112 250 243 240 160 160 180 175 175 260 173 163 158 161 Overloaded Moves . | . . . . . . . . . . . . . . . . . . . . . . . Propulsion Burnouts . | . . . . . . . . . . . . . . . . . . . . . . . Robots Hopped . | . . . . . . . . . . . . . . . . . . . . . . . Cave-ins Triggered . | . . . . . . . . . . . . . . . . . . . . . . . Teleports 1 | . . . . . . . . . . . . . . . . . . 1 . . . . Exploration Rate (%) 40 | 4 48 76 70 50 51 14 6 73 25 15 86 62 90 28 28 41 46 62 37 6 4 20 Regions Visited 22 Branch Regions 14 Pre-discovered Areas 5 | . . . 1 . . . . . 1 . . . . . . . . 3 . . . . Known Exits Taken 5 | . 1 . . . . . . 1 1 . . . . 1 1 . . . . . . . Unknown Exits Taken 17 | 1 . 1 1 1 1 1 1 . . 1 1 1 1 . . 1 1 1 1 1 1 . Scrap Searched 9 | . . 1 . 1 . . . 2 1 . . . . . . 1 2 . 1 . . . Spaces Dug 35 | . . . . . . 3 . 9 . . . . . 4 18 1 . . . . . . Terrain Destroyed 687 | . . 10 . 101 . 24 2 13 . 53 102 44 5 17 200 14 96 . 6 . . . Melee 8 | . . . . . . . . 8 . . . . . . . . . . . . . . Projectile 311 | . . 10 . . . 3 2 5 . 24 51 44 5 17 130 14 . . 6 . . . AOE 367 | . . . . 101 . 21 . . . 29 51 . . . 69 . 96 . . . . . Terrain Rammed . | . . . . . . . . . . . . . . . . . . . . . . . Walls Destroyed . | . . . . . . . . . . . . . . . . . . . . . . . Machines Disabled . | . . . . . . . . . . . . . . . . . . . . . . . Actions | -11 -10 -10 -10 -9 -8 -7 -6 -6 -6 -5 -5 -5 -5 -5 -4 -4 -4 -4 -3 -3 -2 -2 --------- Run | Scr Mat Min Exi Min Mat Fac Fac Low Low Fac Ext Cet Arc Hub Fac Upp Upp Zhi Pro Res Res Tes Total 11942 | 58 361 504 290 274 1181 1114 243 667 176 1005 978 392 185 654 2046 327 287 276 232 284 186 222 Wait 1673 | . 24 36 . . 222 257 8 52 13 81 51 23 1 350 433 13 . . 8 21 . 80 Move 8804 | 45 274 390 288 254 838 771 208 562 162 772 763 232 158 278 1324 283 273 241 211 205 175 97 Hop . | . . . . . . . . . . . . . . . . . . . . . . . Pick Up 136 | 5 15 6 1 . 12 7 2 6 . 14 4 14 4 . 25 1 1 4 1 12 1 1 Fast Attach 95 | 4 5 4 . 2 3 1 2 6 . 15 6 11 3 3 10 3 4 3 2 4 3 1 Attach 85 | 2 . . . . 7 6 3 1 . 1 1 3 1 1 22 3 1 3 2 6 2 20 Detach 37 | . 2 . . . 1 1 1 . . 5 1 5 1 1 7 . 2 3 1 4 2 . Swap 146 | 2 2 13 . 6 16 10 5 7 1 17 18 13 2 1 15 1 1 2 1 8 1 4 Drop 167 | . 8 14 1 . 18 8 2 8 . 34 14 26 6 2 15 . . . . 9 2 . Fire 713 | . 31 41 . 12 64 48 12 17 . 66 71 63 9 18 192 23 5 20 6 15 . . Melee 8 | . . . . . . . . 8 . . . . . . . . . . . . . . Ram . | . . . . . . . . . . . . . . . . . . . . . . . Kick 1 | . . . . . . 1 . . . . . . . . . . . . . . . . Crush 7 | . . . . . . . . . . . . 2 . . 3 . . . . . . 2 Escape Stasis 21 | . . . . . . 4 . . . . . . . . . . . . . . . 17 Rewire 49 | . . . . . . . . . . . 49 . . . . . . . . . . . Trap . | . . . . . . . . . . . . . . . . . . . . . . . Miscellaneous . | . . . . . . . . . . . . . . . . . . . . . . . Route ------- -11/Scrapyard -10/Materials (discovered 2 exits: [*Mat] / *Min) -10/Mines (discovered 3 exits: [*Mat x2] / *Exi) -10/Exiles (discovered 2 exits: [*Min x2]) -9/Mines -8/Materials -7/Factory -6/Factory -6/Lower Caves -6/Lower Caves -5/Factory (discovered 4 exits: *Fac x3 / *Ext) -5/Extension (discovered 3 exits: *Fac x2 / *Cet) -5/Cetus -5/Archives (discovered 3 exits: *Fac / *Hub x2) -5/Hub_04(d) -4/Factory (discovered 3 exits: *Upp x2 / Arm) -4/Upper Caves -4/Upper Caves -4/Zhirov -3/Proximity Caves -3/Research -2/Research -2/Testing History --------- Turn | Location | Event 7 | -11/Scrapyard | Discovered new exit (range 16) 77 | -11/Scrapyard | Entered Materials 229 | -10/Materials | Discovered new exit (range 13) 349 | -10/Materials | Build established: Mutant 405 | -10/Materials | Identified exit to Mines 624 | -10/Materials | Discovered new exit (range 15) 716 | -10/Materials | Entered Mines 750 | -10/Mines | Received a Rocket Launcher from a helpful Derelict 805 | -10/Mines | A weapon hastily lodged in a ceiling crevice suddenly fell to the ground 865 | -10/Mines | Discovered new exit (range 5) 884 | -10/Mines | Discovered new exit (range 8) 1233 | -10/Mines | Assembled infested the area 1353 | -10/Mines | Met a Derelict shopkeep closing up shop 1602 | -10/Mines | Discovered new exit (range 5) 1607 | -10/Mines | Entered Exiles 1626 | -10/Exiles | Discovered new exit (range 15) 1641 | -10/Exiles | Met 8R-AWN 1656 | -10/Exiles | Met EX-HEX 1735 | -10/Exiles | Met EX-DEC 1761 | -10/Exiles | Learned location of Zion (-7) 1782 | -10/Exiles | Met EX-BIN 1800 | -10/Exiles | Aligned with FarCom system 1801 | -10/Exiles | Given EX-Vault access code 1831 | -10/Exiles | Opened EX-Vault 1840 | -10/Exiles | Found Modified TNC 1868 | -10/Exiles | Warned to stay clear of 0b10 Research branches 1955 | -10/Exiles | Discovered new exit (range 14) 1969 | -10/Exiles | Left Exiles lab with Modified TNC 1969 | -10/Exiles | Entered Mines 2287 | -9/Mines | Core integrity fell below 50% 2342 | -9/Mines | Received a Mining Laser from a helpful Derelict 2343 | -9/Mines | Discovered new exit (range 4) 2352 | -9/Mines | Entered Materials 2352 | -8/Materials | Accompanied by 1 ally 2352 | -8/Materials | Evolved 4 slots: Propulsion x2, Utility x2 2641 | -8/Materials | Build established: Scavenger-Mutant 3195 | -8/Materials | Build established: Mutant 3771 | -8/Materials | Discovered new exit (range 5) 3867 | -8/Materials | Entered Factory 3867 | -7/Factory | Evolved 2 slots: Utility x1, Weapon x1 4175 | -7/Factory | Build established: Skirmisher 5122 | -7/Factory | Cargo convoy interrupted 5160 | -7/Factory | Destroyed 7 combat bots 5168 | -7/Factory | Lost 3 parts (2n1u) 5234 | -7/Factory | Discovered new exit (range 5) 5243 | -7/Factory | Entered another Factory area 5243 | -6/Factory | Evolved 2 slots: Utility x2 5530 | -6/Factory | Discovered new exit (range 12) 5544 | -6/Factory | Entered Lower Caves 5634 | -6/Lower Caves | Learned Factory emergency access door positions 5675 | -6/Lower Caves | Encountered a Warlord checkpoint 5934 | -6/Lower Caves | Build established: Scavenger-Tank 5953 | -6/Lower Caves | Identified exit to Lower Caves 6306 | -6/Lower Caves | Entered another Lower Caves area 6307 | -6/Lower Caves | Identified exit to Factory 6496 | -6/Lower Caves | Entered Factory 6496 | -5/Factory | Evolved 2 slots: Power x1, Utility x1 6497 | -5/Factory | Identified exit to Factory 7696 | -5/Factory | First assault squad dispatched 8115 | -5/Factory | Discovered new exit (range 6) 8138 | -5/Factory | Entered Extension 8178 | -5/Extension | Build established: Scavenger-Gunner 8489 | -5/Extension | Rescued A7 8560 | -5/Extension | Rescued a captive Derelict 8637 | -5/Extension | Energy Cycler disabled 8637 | -5/Extension | Rescued a captive Derelict 8637 | -5/Extension | Rescued a captive Derelict 8637 | -5/Extension | Rescued a captive Derelict 8638 | -5/Extension | Rescued a captive Derelict 8638 | -5/Extension | Rescued a captive Derelict 8641 | -5/Extension | Rescued a captive Derelict 8641 | -5/Extension | Rescued a captive Derelict 8663 | -5/Extension | Rescued a captive Derelict 9021 | -5/Extension | Spotted B-75 Beast 9033 | -5/Extension | Spotted B-75 Beast 9037 | -5/Extension | Destroyed B-75 Beast 9055 | -5/Extension | Destroyed B-75 Beast 9061 | -5/Extension | Discovered exit to Factory (range 15) 9064 | -5/Extension | Extracted ID and sensor layout for unrecognized location from A7's data core 9088 | -5/Extension | Disrupted transfer network 9225 | -5/Extension | Destroyed 7 combat bots 9638 | -5/Extension | First assault squad dispatched 9696 | -5/Extension | Discovered exit to Factory (range 10) 9698 | -5/Extension | Discovered new exit (range 6) 9722 | -5/Extension | Entered Cetus 9750 | -5/Cetus | Spotted Cetus Guard 9750 | -5/Cetus | Spotted Cetus Guard 9756 | -5/Cetus | Destroyed Cetus Guard 9756 | -5/Cetus | Spotted Cetus Guard 9766 | -5/Cetus | Destroyed Cetus Guard 9767 | -5/Cetus | Spotted Cetus Guard 9771 | -5/Cetus | Destroyed Cetus Guard 9779 | -5/Cetus | Destroyed Cetus Guard 9853 | -5/Cetus | Lost 4 parts (1p2u1w) 10031 | -5/Cetus | Cetus Manufacturing Module disabled 10045 | -5/Cetus | System corruption reached 10% 10090 | -5/Cetus | Build established: Scavenger-Tank 10187 | -5/Cetus | Core integrity fell below 50% 10273 | -5/Cetus | Discovered new exit (range 15) 10355 | -5/Cetus | Entered Archives 10432 | -5/Archives | Unable to access archive contents 10452 | -5/Archives | Unable to access archive contents 10462 | -5/Archives | Discovered exit to Factory (range 15) 10480 | -5/Archives | Discovered new exit (range 15) 10496 | -5/Archives | Unable to access archive contents 10502 | -5/Archives | Discovered new exit (range 13) 10646 | -5/Archives | Entered Hub_04(d) 11184 | -5/Hub_04(d) | Build established: Scavenger-Mutant 11468 | -5/Hub_04(d) | Discovered exit to Factory (range 13) 11488 | -5/Hub_04(d) | Entered Factory 11488 | -4/Factory | Evolved 2 slots: Utility x2 11609 | -4/Factory | Build established: Scavenger-Tank 12012 | -4/Factory | Assembled infested ambush trap array 12082 | -4/Factory | Lost 3 parts (1p2w) 12418 | -4/Factory | Cargo convoy interrupted 13220 | -4/Factory | Identified exit to Upper Caves 13220 | -4/Factory | Identified exit to Armory 13360 | -4/Factory | Destroyed 10 combat bots 14337 | -4/Factory | Lost 3 parts (1u2w) 14484 | -4/Factory | Core integrity fell below 50% 14523 | -4/Factory | First assault squad dispatched 14523 | -4/Factory | System corruption reached 10% 14588 | -4/Factory | Lost 3 parts (1p2u) 14660 | -4/Factory | Entered Upper Caves 14688 | -4/Upper Caves | Lost 10 parts (2p2n3u3w) 14839 | -4/Upper Caves | Encountered a Warlord checkpoint 14911 | -4/Upper Caves | Build established: Scavenger-Gunner 14956 | -4/Upper Caves | Learned Research interactive machine intel 15055 | -4/Upper Caves | Spotted B-86 Titan 15238 | -4/Upper Caves | Discovered new exit (range 6) 15247 | -4/Upper Caves | Entered another Upper Caves area 15344 | -4/Upper Caves | Learned Research security intel 15707 | -4/Upper Caves | Learned Research machine intel 15740 | -4/Upper Caves | Discovered new exit (range 5) 15747 | -4/Upper Caves | Entered Zhirov 15747 | -4/Zhirov | Discovered new exit (range 3) 15779 | -4/Zhirov | Met Zhirov 15812 | -4/Zhirov | Learned location of Quarantine (-3) 15812 | -4/Zhirov | Learned location of Testing (-2) 15812 | -4/Zhirov | Learned location of Command (-1) 15847 | -4/Zhirov | Zhirov requested help retrieving the SGEMP Prototype 15969 | -4/Zhirov | Found Alien Artifact 15974 | -4/Zhirov | Identified Integrated Dissipator 15974 | -4/Zhirov | Installed Integrated Dissipator, increased core heat dissipation (+20) 15998 | -4/Zhirov | Found Alien Artifact 15999 | -4/Zhirov | Identified Transdimensional Reconstructor 15999 | -4/Zhirov | Warped through subspace 16058 | -4/Zhirov | Build established: Scavenger-Mutant 16227 | -4/Zhirov | Entered Proximity Caves 16476 | -3/Proximity Caves | Lost 3 parts (1n2u) 16503 | -3/Proximity Caves | Build established: Scavenger-Gunner 16597 | -3/Proximity Caves | Discovered new exit (range 7) 16613 | -3/Proximity Caves | Entered Research 16613 | -3/Research | Evolved 2 slots: Utility x1, Weapon x1 16615 | -3/Research | Loaded intel: 109 machine locations 16616 | -3/Research | Loaded intel: 46 interactive machine locations 16940 | -3/Research | Lost 3 parts (3w) 17023 | -3/Research | Discovered new exit (range 7) 17038 | -3/Research | System corruption reached 10% 17043 | -3/Research | System corruption reached 30% 17043 | -3/Research | Entered another Research area 17043 | -2/Research | Evolved 2 slots: Propulsion x2 17086 | -2/Research | Discovered new exit (range 9) 17331 | -2/Research | Entered Testing 17332 | -2/Testing | Maximum security lockdown engaged 17385 | -2/Testing | Spotted PG-G7MMSM0P03 17435 | -2/Testing | Spotted Striker 17436 | -2/Testing | Spotted Striker 17467 | -2/Testing | Spotted Striker 17467 | -2/Testing | Spotted Striker 17475 | -2/Testing | Spotted Alpha 7 17480 | -2/Testing | Scanned by Researcher 17510 | -2/Testing | Stole the SGEMP Prototype 17578 | -2/Testing | Core integrity fell below 50% 17596 | -2/Testing | Core integrity fell below 20% 17607 | -2/Testing | Destroyed by G-73 Enforcer with Phase Gun Last Messages --------------- 17538_ Lrn. Missile Launcher destroyed. 17544_ System corrupted: Heat flow error (+295). 17545_ Coil Gun destroyed. 17550_ Med. Treads destroyed. 17553_ Arm. Medium Treads destroyed. 17553_ Adv. Heat Sink destroyed. 17565_ Arm. Medium Treads destroyed. 17565_ Med. Treads destroyed. 17568_ Coil Gun destroyed. 17568_ Micro-nuke Launcher destroyed. 17571_ Com. Battery destroyed. 17573_ Matter Filter destroyed. 17573_ Com. Matter Pod destroyed. 17573_ Lgt. Particle Reactor destroyed. 17575_ Adv. Heat Sink destroyed. 17575_ Hcp. Storage Unit destroyed. 17575_ Adv. Target Analyzer destroyed. 17580_ Mic. Fission Core destroyed. 17584_ System corrupted: Heat flow error (+191). 17595_ Adv. Heat Sink destroyed. Map ----- +----------------------------------------------------+ | | | | | | | | | | | | | | | | | | | | | | | | | | | | | | | | | | | | | | | ???????????????????????????????????????? | | ???????????????????????????????????????? | | ???????????????????????????????????????? | | ????????##########?????????????????????? | | ????????#""""""""#?????????????????????? | | ????????#" """""#?????????????????????? | | ????????#"7ggKK@"#?????????????????????? | | ???????##hYgcKg""#?????????????????????? | | ???????#iiElKY"""#?????????????????????? | | ???????# pgYY"""#?????????????????????? | | ???????####gl#####?????????????????????? | | ?????????##lgg#????????????????????????? | | ?????????# ggb#????????????????????????? | | ?????????##lg##????????????????????????? | | ??????????#eg#?????????????????????????? | | ??????????# C#?????????????????????????? | | ?????????#% C#?????????????????????????? | | ?????????##[C#?????????????????????????? | | ??????????#!C#?????????????????????????? | | ??????????#%C############ #???????????? | | ??????????#!=CC #???????????? | | ??????????#% ^ +???????????? | | ??????????###### """ #???????????? | | ?????????????## """ =] ##??????????? | | ????????????## "" ]! ""??????????? | | ????????????# # ]! F"#?????????? | | ????????????# "#?????????? | | ????????????# ""#?????????? | | ????????????# " ##??????????? | | ????????????# #???????????? | | ????????????# "" " """ ?????????? | +----------------------------------------------------+ Best States ------------- Heat Dissipation 126 Energy Generation 45 Energy Capacity 925 Matter Stores 450 Matter Capacity 450 Sight Range 16 Terrain Scan Density 10 EM Shielding 4 Armor Coverage 2400 Resistance: KI 25 Core Shielding 40 Weapon Cycling 20 Phase Shifting 10 Evasion (%) 60 Targeting Accuracy 13 Target Analysis 8 Recoil Reduction 6 Matter Filtering 30 Kinecelleration 40 Salvage Targeting 4 Offensive Hacking 14 Item Schematics ----------------- Assault Drone Bay | -4/Zhirov | Free Exp. Heat Sink | -4/Zhirov | Free Exp. Optical Array | -4/Zhirov | Free Imp. Arc Thrower | -4/Zhirov | Free Robot Schematics ------------------ None Fabricated ------------ Nothing Alien Tech Used ----------------- Integrated Dissipator Transdimensional Reconstructor Achievements -------------- Prison Break Turtlemind Challenges ------------ None Game ------ Seed DirtyGreatScanner Manual? 0 Play Time 03:05:09 Cumulative 75.8 hours Start 2021.11.07 @ 13:08:58 End 2021.11.07 @ 21:21:04 Sessions 11 Manual Loads 0 Difficulty Rogue Special Mode None Game No. 47 Rogue 44 Adventurer 3 Explorer 0 Win Type - Total 5 Types 4/1/0/0/0/0/0/0/0 Lore% 57 Gallery% 49 Achievement% 46 Wizard Run 0 Options --------- ASCII 1 Keyboard 1 Movement Vi Keybinds 0 Fullscreen 2 Font 18/SmallcapsGlow Map View 76x50 Tactical HUD 1 Map Filters NONE Filters NONE Steam 1 RUN: 6c26ebb5-f1a9-4e47-bc2e-edf76a6659d3